Cogmind - Beta 13 @@@ ROGUE MODE // 2024.04.03 @ 15:05:05 Player: Creon Result: Destroyed by G-47 Trooper with Particle Gun Performance ------------- Evolutions (2) 1000 Regions Visited (4) 800 Robots Destroyed (40) 200 Value Destroyed (1006) 1006 Prototype IDs (2) 40 Alien Tech Used (0) 0 Bonus (0) 0 TOTAL SCORE: 3046 Bonus ------- None Cogmind --------- Core Integrity 0/550 Matter 300/300 Energy 100/100 System Corruption 2% Temperature Warm (151) Movement Core (1350) Ox26 Location -8/Materials Parts ------- > --- POWER (1) -------- (None) > --- PROPULSION (4) --- (None) > --- UTILITY (3) ------ Huge Storage Unit Terrain Scan Processor > --- WEAPON (3) ------- (None) > --- INVENTORY (25) --- Improved Heat Sink Improved Heat Sink High-capacity Matter Pod (35) Field Recycling Unit (0) Assault Rifle Peak State ------------ > --- POWER ------------ Ion Engine > --- PROPULSION ------- Aluminum Leg Aluminum Leg Improved Aluminum Leg > --- UTILITY ---------- Improved Heat Sink Huge Storage Unit Terrain Scan Processor > --- WEAPON ----------- Heavy Particle Cannon Light Assault Rifle > --- INVENTORY -------- Improved Heat Sink High-capacity Matter Pod Improved Terrain Scanner Field Recycling Unit Particle Gun Assault Rifle [Rating: 16] Favorites ----------- Power Ion Engine Engine Ion Engine Propulsion Compact Wheel Treads Improved Treads Leg Aluminum Leg Wheel Compact Wheel Utility Huge Storage Unit Device Sensor Array Storage Huge Storage Unit Processor Terrain Scan Processor Weapon Assault Rifle Energy Gun Particle Gun Energy Cannon Heavy Particle Cannon Ballistic Gun Assault Rifle Launcher Grenade Launcher Build | -11 -10 -10 -9 -8 ------- Run | Yrd Mat Min Mat Mat Slots Evolved 4 | . . . 2 2 Power . | . . . . . Propulsion 2 | . . . 1 1 Utility 1 | . . . 1 . Weapon 1 | . . . . 1 Parts Attached 54 | 6 12 6 14 16 Power 5 | 1 1 . 1 2 Engine 5 | 1 1 . 1 2 Core . | . . . . . Reactor . | . . . . . Propulsion 15 | 2 4 . 5 4 Treads 1 | . . . . 1 Leg 9 | 2 2 . 2 3 Wheel 5 | . 2 . 3 . Hover . | . . . . . Flight . | . . . . . Utility 13 | 1 4 2 4 2 Device 10 | 1 2 2 3 2 Storage 2 | . 2 . . . Processor 1 | . . . 1 . Hackware . | . . . . . Protection . | . . . . . Artifact . | . . . . . Weapon 21 | 2 3 4 4 8 Energy Gun 1 | . . . . 1 Energy Cannon 2 | . . . . 2 Ballistic Gun 12 | 2 1 3 2 4 Ballistic Cannon . | . . . . . Launcher 6 | . 2 1 2 1 Special Weapon . | . . . . . Impact Weapon . | . . . . . Slashing Weapon . | . . . . . Piercing Weapon . | . . . . . Special Melee Weapon . | . . . . . Unidentified Prototypes . | . . . . . Parts Lost 26 | . 1 2 8 15 Power 5 | . 1 1 1 2 Propulsion 11 | . . . 5 6 Utility 2 | . . . 1 1 Weapon 8 | . . 1 1 6 Highest Loss Streak 8 | . 1 2 5 8 To Critical Strikes . | . . . . . Average Slot Usage (%) 80 | . 96 79 88 61 Engine 7 | . 12 1 10 5 Leg 8 | . 14 . . 16 Wheel 16 | . 13 28 24 . Device 13 | . 16 14 18 8 Storage 11 | . 9 14 11 9 Processor 2 | . . . 1 9 Energy Cannon 1 | . . . . 5 Ballistic Gun 16 | . 21 19 17 7 Launcher 2 | . 6 1 2 . Naked Turns . | . . . . . Heaviest Build 99 | 8 91 91 99 93 Greatest Support 42 | 20 32 32 42 33 Greatest Overweight (x) 29 | . 4 2 8 29 Average Overweight (x) 1 | . . 2 2 4 Largest Inventory Capacity 25 | 5 25 25 25 25 Average Capacity 21 | 5 14 25 25 25 Most Carried 12 | 5 9 9 12 11 Average Carried 7 | 2 5 8 8 6 Final Capacity 25 | 5 25 25 25 25 Final Carried 9 | 3 8 9 9 5 Class Distribution -------------------- 86% | Mutant 13% | Scavenger-Mutant Dominant Class ---------------- Mutant | -10/Materials Mutant | -10/Mines Mutant | -9/Materials Mutant | -8/Materials Resources | -11 -10 -10 -9 -8 ----------- Run | Yrd Mat Min Mat Mat Matter Collected 1207 | 284 129 69 292 433 Remotely . | . . . . . Salvage Created 1013 | 41 272 59 295 346 Parts 82 | 1 20 3 30 28 Haulers Intercepted 1 | . 1 . . . Recyclers Shooed 1 | . . . . 1 Parts Field Recycled . | . . . . . Retrieved Matter . | . . . . . Parts Self-Destructed . | . . . . . Prevented . | . . . . . Kills | -11 -10 -10 -9 -8 ------- Run | Yrd Mat Min Mat Mat Combat Hostiles Destroyed 22 | 1 8 2 5 6 Guns 7 | 1 2 1 2 1 Cannons 3 | . . . . 3 AOE 12 | . 6 1 3 2 Classes Destroyed 10 | 1 3 . 4 2 Worker 8 | . 1 . 3 4 Builder 4 | . . . 3 1 Tunneler 1 | . . . 1 . Hauler 1 | . 1 . . . Recycler 1 | . . . 1 . Watcher 3 | . 1 . 1 1 Swarmer 2 | . . . 2 . Grunt 18 | 1 8 2 3 4 Brawler 1 | . . . . 1 Duelist 1 | . . . . 1 Best Kill Streak 5 | 1 4 1 5 5 Combat Bots Only 3 | 1 2 1 3 3 Max Kills in Single Turn 4 | 1 4 1 3 2 Gunslinging . | . . . . . Exploded 2 | . 2 1 2 2 Melee . | . . . . . Uniques/NPCs Destroyed . | . . . . . Combat | -11 -10 -10 -9 -8 -------- Run | Yrd Mat Min Mat Mat Hostile Shots Fired 265 | 5 26 22 86 126 Missed 69 | 2 4 6 27 30 Damage Taken 3069 | 30 318 261 726 1734 Core 860 | 20 33 49 199 559 Absorbed by Shields . | . . . . . Core Remaining (%) 67 | 92 . 59 50 . Volleys Fired 114 | 4 25 22 24 39 Largest 3 | 2 2 2 2 3 Hottest 118 | 40 40 40 43 118 Shots Fired 186 | 8 40 39 37 62 Gun 138 | 8 30 37 28 35 Cannon 25 | . . . . 25 Launcher 23 | . 10 2 9 2 Special . | . . . . . Kinetic 138 | 8 30 37 28 35 Thermal 25 | . . . . 25 Explosive 23 | . 10 2 9 2 Electromagnetic . | . . . . . Robot Hit Streak 14 | 2 13 14 5 4 Robot Miss Streak 3 | 2 1 2 3 3 Penetration Max . | . . . . . Secondary Targets . | . . . . . Shots Hit Robots 87 | 4 23 15 12 33 Core Hits 59 | 2 16 5 17 19 Critical Kills . | . . . . . Critical Parts Destroyed 1 | . 1 . . . Critical Strikes 1 | . 1 . . . Destroy 1 | . 1 . . . Melee Attacks . | . . . . . Impact . | . . . . . Slashing . | . . . . . Piercing . | . . . . . Sneak Attacks . | . . . . . Combat Hostiles . | . . . . . Follow-up Attacks . | . . . . . Damage Inflicted 3036 | 55 863 289 849 980 Guns 944 | 48 298 176 159 263 Cannons 375 | . . . . 375 Explosions 1609 | . 562 113 592 342 Melee . | . . . . . Ramming 108 | 7 3 . 98 . Kinetic 944 | 48 298 176 159 263 Thermal 1130 | . 281 . 250 599 Explosive 854 | . 281 113 342 118 Electromagnetic . | . . . . . Impact . | . . . . . Slashing . | . . . . . Piercing . | . . . . . Highest Corruption 4 | . 3 3 4 2 Average Corruption 2 | . 2 3 3 2 Corruption Purged . | . . . . . Corruption Blocked . | . . . . . Effects 32 | . 6 14 4 8 Message Errors 10 | . 2 2 1 5 Matter Fused 7 | . 1 4 1 1 Heat Flow Errors 3 | . 1 1 . 1 Energy Discharges 4 | . . 2 1 1 Data Loss (minor) 5 | . . 4 1 . Data Loss (major) 3 | . 2 1 . . Overload Shots . | . . . . . Overflow Damage 229 | . 47 . 87 95 Projectiles 3 | . . . . 3 Explosions 200 | . 47 . 61 92 Melee 26 | . . . 26 . Knockbacks . | . . . . . Impact . | . . . . . Kinetic . | . . . . . Secondary . | . . . . . Self-Inflicted Damage 288 | . 74 . 67 147 Shots 6 | . 1 . 1 4 Rammed 6 | . 1 . 5 . Targets Rammed 8 | 1 2 . 5 . Kicked 2 | 1 1 . . . Crushed . | . . . . . Highest Temperature 270 | . 134 164 1 270 Average Temperature 56 | . 52 49 1 59 Received Heat Transfer 1341 | 18 138 162 159 864 Siege Activations . | . . . . . Robots Corrupted . | . . . . . Combat Hostiles . | . . . . . Parts Fried . | . . . . . Impact Corruptions 2 | . . . 2 . Robots Melted . | . . . . . Combat Hostiles . | . . . . . Parts Melted . | . . . . . Heat Transferred 1155 | . 200 . 250 705 Parts Sabotaged . | . . . . . Parts Stolen . | . . . . . Parts Stripped . | . . . . . Power Chain Reactions . | . . . . . Alert | -11 -10 -10 -9 -8 ------- Run | Yrd Mat Min Mat Mat Peak Influence 228 | 20 202 105 228 213 Initial 62 | . 13 62 . 39 Average 70 | 3 110 46 97 51 Maximum Alert Level 1 | . 1 . 1 1 Low Security (%) 96 | 100 93 100 97 96 Level 1 3 | . 6 . 2 3 Level 2 . | . . . . . Level 3 . | . . . . . Level 4 . | . . . . . Level 5 . | . . . . . High Security . | . . . . . Max Security . | . . . . . Squads Dispatched 4 | . 1 . 3 . Investigation 2 | . 1 . 1 . Extermination . | . . . . . Reinforcement 2 | . . . 2 . Assault . | . . . . . Garrison . | . . . . . Intercept . | . . . . . Searches Triggered . | . . . . . Construction Impeded . | . . . . . Haulers Reinforced . | . . . . . Active Scanning Responses . | . . . . . Cargo Convoy Interrupts . | . . . . . Stealth | -11 -10 -10 -9 -8 --------- Run | Yrd Mat Min Mat Mat Distress Signals 2 | . . . 2 . Communications Jammed . | . . . . . Distress Signals . | . . . . . Times Spotted 44 | 1 11 2 18 12 Peak Tracking Total 6 | 1 3 2 6 4 Tactical Retreats 3 | . . . 3 . Traps | -11 -10 -10 -9 -8 ------- Run | Yrd Mat Min Mat Mat Traps Triggered 2 | . 2 . . . Indirectly . | . . . . . Trap Hack Attempts . | . . . . . Triggered . | . . . . . Disarmed . | . . . . . Reprogrammed . | . . . . . Reused . | . . . . . Traps Extracted . | . . . . . Installed . | . . . . . Triggered . | . . . . . Machines | -11 -10 -10 -9 -8 ---------- Run | Yrd Mat Min Mat Mat Machines Disabled 10 | . 3 2 2 3 Max in Single Turn 2 | . 2 1 1 2 Machines Repaired . | . . . . . Machines Dismantled . | . . . . . Machines Sabotaged . | . . . . . Overloaded Fab Kills . | . . . . . Hacking | -11 -10 -10 -9 -8 --------- Run | Yrd Mat Min Mat Mat Machines Accessed 6 | . 3 1 1 1 Terminals 3 | . 2 1 . . Fabricators . | . . . . . Repair Stations . | . . . . . Recycling Units 2 | . 1 . 1 . Scanalyzers 1 | . . . . 1 Garrison Access . | . . . . . Total Hacks 28 | . 18 5 3 2 Successful 18 | . 12 1 3 2 Failed 10 | . 6 4 . . Catastrophic . | . . . . . Database Lockouts . | . . . . . Manual 2 | . 2 . . . Terminals 15 | . 10 5 . . Fabricators . | . . . . . Repair Stations . | . . . . . Recycling Units 11 | . 8 . 3 . Scanalyzers 2 | . . . . 2 Garrison Access . | . . . . . Terminal Hacks 6 | . 5 1 . . Record 3 | . 3 . . . Prototype ID Bank 1 | . 1 . . . Locate Traps 1 | . 1 . . . Dispatch Records 1 | . . 1 . . Fabricator Hacks . | . . . . . Repair Station Hacks . | . . . . . Recycling Unit Hacks 10 | . 7 . 3 . Recycle Component 4 | . 2 . 2 . Process 1 | . 1 . . . Report Inventory 2 | . 1 . 1 . Retrieve Matter 2 | . 2 . . . Retrieve Components 1 | . 1 . . . Scanalyzer 2 | . . . . 2 Insert Component 1 | . . . . 1 Analyze 1 | . . . . 1 Garrison Access Hacks . | . . . . . Unauthorized Hacks . | . . . . . Terminals . | . . . . . Fabricators . | . . . . . Repair Stations . | . . . . . Recycling Units . | . . . . . Scanalyzers . | . . . . . Garrison Access . | . . . . . Data Cores Recovered . | . . . . . Used . | . . . . . Hacking Detections 5 | . 3 1 1 . Full Trace Events 3 | . 2 . 1 . Feedback Events . | . . . . . Feedback Blocked . | . . . . . Robot Schematics Acquired . | . . . . . Robots Built . | . . . . . Authchips . | . . . . . Time . | . . . . . Total Robot Build Rating . | . . . . . Part Schematics Acquired 1 | . . . . 1 Parts Built . | . . . . . Authchips . | . . . . . Time . | . . . . . Total Part Build Rating . | . . . . . Parts Repaired . | . . . . . Time . | . . . . . Parts Recycled 4 | . 2 . 2 . Recycled Matter 71 | . 71 . . . Retrieved Matter 71 | . 71 . . . Retrieved Components 4 | . 4 . . . Parts Scanalyzed 1 | . . . . 1 Part Schematics Acquired 1 | . . . . 1 Parts Damaged . | . . . . . Bothacking | -11 -10 -10 -9 -8 ------------ Run | Yrd Mat Min Mat Mat Used RIF Installer . | . . . . . Robots Hacked . | . . . . . Non-combat . | . . . . . Combat . | . . . . . Robot Hacks Applied . | . . . . . Relay Couplers Released . | . . . . . Fabnet Peak Effective % . | . . . . . Robots Rewired . | . . . . . Allies Hacked . | . . . . . Hacks Repelled . | . . . . . Allies | -11 -10 -10 -9 -8 -------- Run | Yrd Mat Min Mat Mat Total Allies . | . . . . . Largest Group . | . . . . . Highest-Rated Group . | . . . . . Highest-Rated Ally . | . . . . . Total Orders . | . . . . . Ally Attacks . | . . . . . Total Damage . | . . . . . Kills . | . . . . . Allies Corrupted . | . . . . . Allies Melted . | . . . . . Intel | -11 -10 -10 -9 -8 ------- Run | Yrd Mat Min Mat Mat Robot Analysis Total . | . . . . . Derelict Logs Recovered 1 | . . 1 . . Drone Launches . | . . . . . Drone Recoveries . | . . . . . Exploration | -11 -10 -10 -9 -8 ------------- Run | Yrd Mat Min Mat Mat Turns Passed 2948 | 112 738 877 478 743 Spaces Moved 1616 | 86 509 574 289 158 Core 46 | 36 1 . . 9 Treads 3 | . . . . 3 Legs 463 | 50 262 . 5 146 Wheels 1104 | . 246 574 284 . Hover . | . . . . . Flight . | . . . . . Fastest Speed 50 | 50 100 130 116 260 Average Speed 152 | 90 125 130 133 391 Slowest Speed 1500 | 120 400 130 400 1500 Overloaded Moves . | . . . . . Propulsion Burnouts . | . . . . . Robots Hopped . | . . . . . Cave-ins Triggered . | . . . . . Exploration Rate (%) 39 | 8 69 85 22 15 Regions Visited 4 Branch Regions 1 Pre-discovered Areas 2 | . . 2 . . Known Exits Taken . | . . . . . Unknown Exits Taken 4 | 1 1 1 1 . Scrap Searched 1 | . . 1 . . Spaces Dug 9 | . . . 9 . Terrain Destroyed 239 | . 79 20 94 46 Melee . | . . . . . Projectile 10 | . . . . 10 AOE 229 | . 79 20 94 36 Terrain Rammed . | . . . . . Walls Destroyed . | . . . . . Machines Disabled . | . . . . . Actions | -11 -10 -10 -9 -8 --------- Run | Yrd Mat Min Mat Mat Total 1904 | 112 564 665 340 223 Wait 75 | 7 1 61 1 5 Move 1612 | 85 508 573 288 158 Hop . | . . . . . Pick Up 31 | 9 10 2 6 4 Fast Attach 13 | . 4 1 4 4 Attach 21 | 6 2 . 4 9 Detach 3 | . 1 . 1 1 Swap 20 | . 6 5 6 3 Drop 7 | . 5 1 1 . Fire 114 | 4 25 22 24 39 Melee . | . . . . . Ram 6 | . 1 . 5 . Kick 2 | 1 1 . . . Crush . | . . . . . Escape Stasis . | . . . . . Rewire . | . . . . . Trap . | . . . . . Miscellaneous . | . . . . . Route ------- -11/Scrapyard -10/Materials (discovered 4 exits: *Mat x2 / *Min x2) -10/Mines (discovered 2 exits: *Mat x2) -9/Materials -8/Materials History --------- Turn | Location | Event 2 | -11/Scrapyard | Met Revision 17 77 | -11/Scrapyard | Discovered new exit (range 8) 113 | -11/Scrapyard | Entered Materials 300 | -10/Materials | Build established: Mutant 363 | -10/Materials | Discovered new exit (range 16) 481 | -10/Materials | Discovered new exit (range 4) 543 | -10/Materials | Discovered new exit (range 16) 763 | -10/Materials | Discovered new exit (range 13) 851 | -10/Materials | Entered Mines 861 | -10/Mines | Discovered new exit (range 15) 907 | -10/Mines | Discovered new exit (range 5) 1009 | -10/Mines | Learned location of Zion (-7) 1107 | -10/Mines | Found a hidden stash of uninstalled traps 1247 | -10/Mines | Learned location of Storage (-9) 1645 | -10/Mines | YI-UF0 nonchalantly dropped a Grenade Launcher on the ground 1728 | -10/Mines | Entered Materials 1728 | -9/Materials | Evolved 2 slots: Propulsion x1, Utility x1 2180 | -9/Materials | Discovered new exit (range 11) 2206 | -9/Materials | Entered another Materials area 2206 | -8/Materials | Evolved 2 slots: Propulsion x1, Weapon x1 2235 | -8/Materials | Lost 5 parts (1p3n1w) 2496 | -8/Materials | Lost 5 parts (1p2n2w) 2903 | -8/Materials | Core integrity fell below 50% 2923 | -8/Materials | Core integrity fell below 20% 2949 | -8/Materials | Destroyed by G-47 Trooper with Particle Gun Last Messages --------------- 02823_ R-06 Scavenger collects Imp. Hover Unit. 02826_ U-05 Engineer builds a Wall. 02826_ K-01 Serf collects debris. 02826_ R-06 Scavenger collects Lgt. Deuterium Engine. 02830_ K-01 Serf collects debris. 02840_ Acquired 31 matter. 02860_ Ion Engine destroyed. 02862_ Critical hit (Burn: +37). 02862_ Lgt. Assault Rifle destroyed. 02868_ Critical hit (Burn: +37). 02883_ Imp. Aluminum Leg destroyed. 02900_ Aluminum Leg destroyed. 02904_ U-05 Engineer builds a Wall. 02912_ Imp. Terrain Scanner destroyed. 02918_ :#/A9GPMU80KYZCXMXU&GI2VQAB2BO%>BUE49 J 02924_ U-05 Engineer builds a Wall. 02926_ Hvy. Particle Cannon destroyed. 02932_ Particle Gun destroyed. 02943_ System corrupted: Heat flow error (+292). [Achievement: First Step to Greatness] Map ----- +----------------------------------------------------+ | ?????????????????????????????????????????????????? | | ?????????????????????????????????????????????????? | | ?????????????????????????????????????????????????? | | ??????????? ?????????????????????????????????????? | | ????????#???????#????????????????????????????????? | | ??????#??? ?? ???????????????????????????????????? | | ?????????????????????????????????????????????????? | | ? ? ? ?? ? ? ?? ??????????????????????????????? | | ???? ? ? ???????? ?? ??" #??????????????????????? | | ??#?####????????# ? ????#??????????????????????? | | ?#####?#?#?##??#?#??###????? ?#??????????????????? | | ##??#??#?#?# ? ???????#??????????????????? | | ? #?##?#?##?## ? ??#?????#?????????????????? | | ### ## #### ####?#????????????????????? | | ?### ##### #??? #??????#?????????????? | | ### #### #### ?##??????????????????? | | "" #?## ### ?#?#???????#??????????????? | | ?" ?## ## ???#?#?#??????????????????? | | ?" #?# #? ???#??#???#?##?????????????? | | ####?# ## #?## ##???#?#??#??????????? | | ########## ########+####### #########????????????? | | ???????????? | | ???????????? | | [ ???????????? | | ###+############## #########???#?#????????????? | | ### ###### ##g@ #? ??????????????? | | ### # # ##g""" # ? ??? ????????????? | | ### # # ## """ # ??? ??????????? | | # # # # ## """ # ? ?????????? | | # # # # ## #?? ?????????? | | # # # # #####+## ????????? | | ### # + / ? ????????? | | # # # # #####??#????????????? | | ################## ###### ?? ??????????? | | ### # # "#?# ?????????????? | | ??### " # ##?# "?"??????????? | | ???# "" + / ""???????????? | | ??### " """ # ## ""? ????????? | | ? #?# """"" # "#??????????????? | | " ?## """"" # ######### ####?#??????????? | | ? #?# """"" # # # #???? ??????????? | | ???##?""""" # # "" # #??? ???????????? | | ?????? # + S"" # #?? ????????????? | | ?#??#??####### # "" # #???????????????? | | ? ????##????## # # ##??????????????? | | ???????????#?# #########? ???????????????? | | ?????????????######????#??#? ##??????????????? | | ?????????????????????? ??????????????????????????? | | ????????????????????????? ???????????????????????? | | ??????????????????????????? ?????????????????????? | +----------------------------------------------------+ Best States ------------- Heat Dissipation 45 Energy Generation 10 Energy Capacity 400 Matter Stores 300 Matter Capacity 300 Sight Range 16 Robot Scan Range 14 Terrain Scan Range 16 Terrain Scan Density 85 Evasion (%) 55 Recoil Reduction 1 Item Schematics ----------------- Hvy. Assault Rifle | -8/Materials | Scanalyzed Robot Schematics ------------------ None Fabricated ------------ Nothing Alien Tech Used ----------------- None Achievements -------------- Crack Shot First Step to Greatness One Hack Too Far Oops Remodeling Challenges ------------ None Game ------ Seed NeutrinoHeavyProtomatter Manual? 0 Play Time 00:59:33 Cumulative 0.9 hours Start 2024.04.03 @ 13:55:29 End 2024.04.03 @ 15:05:05 Sessions 4 Manual Loads 0 Difficulty Rogue Special Mode None Game No. 2 Rogue 2 Adventurer 0 Explorer 0 Win Type - Total 0 Types 0/0/0/0/0/0/0/0/0 Lore% 0 Gallery% 3 Achievement% 3 Wizard Run 0 Options --------- Layout 0 ASCII 0 Keyboard 1 Movement Numpad Keybinds 0 Fullscreen 0 Font 16/Terminus Map View 96x60 Zoom Use 0% Tactical HUD 1 Map Filters NONE Filters NONE Steam 1 RUN: a3a2da6c-d587-4b3a-b979-3f20653561d6